bitfinex-derivatives/quotes_ETHF0:USTF0_20251006
["timestamp","ask_amount","ask_price","bid_price","bid_amount"]
[1759743140652,1.21127815,4569.5,4569.4,1.14946]
[1759743140856,1.42017815,4569.5,4569.4,0.7557]
[1759743141057,1.54997815,4569.5,4569.4,0.7557]
[1759743141450,1.54997815,4569.5,4569.4,0.4175]
[1759743141851,1.54997815,4569.5,4569.3,0.39376]
[1759743142048,1.20117815,4569.4,4569.3,1.13886]
[1759743145152,0.748,4569.2,4569.1,3.2078]
[1759743145355,0.4312,4568.6,4568.5,3.7468]
[1759743145550,0.967,4568.6,4568.5,4.34674]
[1759743145758,1.42017815,4568.6,4568.5,3.9529]
[1759743145949,1.42017815,4568.6,4568.5,3.4335]
[1759743146363,1.42017815,4568.6,4568.5,3.2078]
[1759743146752,1.42017815,4568.6,4568.5,3.4335]
[1759743147049,0.67217815,4568.6,4568.5,4.0829]
[1759743147755,1.42017815,4568.6,4568.5,3.9529]
[1759743148063,0.67217815,4568.6,4568.5,4.0829]
[1759743149557,1.21127815,4568.6,4568.5,4.0829]
[1759743149754,1.42017815,4568.6,4568.5,3.9529]
[1759743150252,1.21127815,4568.6,4568.5,3.9529]
[1759743150456,0.98897815,4568.6,4568.5,4.0829]
[1759743150762,0.67217815,4568.6,4568.5,4.0829]
[1759743151761,0.45317815,4568.6,4568.5,4.0829]
[1759743151965,0.45618018,4568.8,4568.7,1.13892]
[1759743152262,0.67518018,4568.8,4568.7,1.13892]
[1759743152455,0.45618018,4568.8,4568.7,6.13892]
[1759743153662,0.219,4569.2,4569.1,1.13889]
[1759743153856,0.219,4569.2,4569.1,4.34669]
[1759743154458,0.67521858,4569.2,4569.1,4.34669]
[1759743155251,0.45621858,4569.2,4569.1,4.34669]
[1759743155458,0.55643722,4569.9,4569.8,1.14473]
[1759743155659,1.23168471,4569.9,4569.8,1.14473]
[1759743155962,1.22868471,4569.9,4569.8,1.14473]
[1759743156164,1.44768471,4569.9,4569.8,1.14473]
[1759743157459,1.22868471,4569.9,4569.8,1.14473]
[1759743157665,1.44768471,4569.9,4569.8,1.14473]
[1759743158462,1.22868471,4569.9,4569.8,1.14473]
[1759743158658,1.44768471,4569.9,4569.8,1.14473]
[1759743161664,1.44768471,4569.9,4569.8,0.751]
[1759743161868,0.99143722,4569.9,4569.8,0.751]
[1759743162165,1.44774297,4569.9,4569.8,0.751]
[1759743164164,1.44774297,4569.9,4569.7,0.39373]
[1759743164371,0.7703,4569.2,4569.1,4.14029]
[1759743164561,1.22660575,4569.2,4569.1,3.82079]
[1759743164762,1.22660575,4569.2,4569.1,4.14029]
[1759743164965,1.22660575,4569.2,4569.1,4.35259]
[1759743165268,1.22660575,4569.2,4569.1,3.9588]
[1759743165466,1.22660575,4569.2,4569.1,3.6393]
[1759743166062,1.22660575,4569.2,4569.1,4.03309]
[1759743166768,1.22660575,4569.2,4569.1,3.6393]
[1759743166970,1.22660575,4569.2,4569.1,3.427]
[1759743168070,1.22660575,4569.2,4569.1,3.2078]
[1759743170069,1.44560575,4569.2,4569.1,3.9769]
[1759743170275,1.22660575,4569.2,4569.1,3.9769]
[1759743170577,1.44560575,4569.2,4569.1,3.9769]
[1759743172375,1.22660575,4569.2,4569.1,3.9769]
[1759743172673,1.44560575,4569.2,4569.1,3.9769]
[1759743174579,1.22660575,4569.2,4569.1,3.9769]
[1759743174774,1.44560575,4569.2,4569.1,3.9769]
[1759743175573,1.22660575,4569.2,4569.1,3.9769]
[1759743175873,1.44560575,4569.2,4569.1,3.9769]
[1759743176073,1.22660575,4569.2,4569.1,3.9769]
[1759743176274,1.22960575,4569.2,4569.1,3.9769]
[1759743176777,1.01060575,4569.2,4569.1,3.9769]
[1759743176978,1.22960575,4569.2,4569.1,3.9769]
[1759743178273,0.67530575,4569.2,4569.1,3.9769]
[1759743178882,0.45630575,4569.2,4569.1,3.9769]
[1759743179176,1.00250575,4569.2,4569.1,3.9769]
[1759743179681,0.45630575,4569.2,4569.1,3.9769]
[1759743180381,0.67530575,4569.2,4569.1,3.9769]
[1759743181075,0.45630575,4569.2,4569.1,3.9769]
[1759743181376,0.67530575,4569.2,4569.1,3.9769]
[1759743181580,0.45630575,4569.2,4569.1,3.9769]
[1759743181776,0.67530575,4569.2,4569.1,3.9769]
[1759743182387,0.45630575,4569.2,4569.1,3.9769]
[1759743185179,1.21370575,4569.2,4569.1,3.9769]
[1759743186676,1.00440575,4569.2,4569.1,3.9769]
[1759743192275,1.21370575,4569.2,4569.1,3.9769]
[1759743192879,1.00440575,4569.2,4569.1,3.9769]
[1759743193987,0.45630575,4569.2,4569.1,3.9769]
[1759743194282,0.78350575,4569.2,4569.1,3.9769]
[1759743194887,0.45630575,4569.2,4569.1,3.9769]
[1759743195681,0.67530575,4569.2,4569.1,3.9769]
[1759743195983,0.3272,4569.8,4569.6,0.39374]
[1759743195984,1.18061024,4569.8,4569.6,0.39374]
[1759743196182,0.3272,4571.0,4570.1,0.7691]
[1759743196380,0.39358,4571.6,4571.4,0.39359]
[1759743196587,0.7793,4571.5,4571.4,1.16269]
[1759743197078,0.7574,4571.5,4571.4,4.37049]
[1759743197284,0.76951715,4571.5,4571.4,4.3722986]
[1759743197485,0.00241715,4571.5,4571.4,4.3722986]
[1759743197684,0.22141715,4571.5,4571.4,4.3722986]
[1759743197882,0.00241715,4571.5,4571.4,4.3722986]
[1759743198088,0.22141715,4571.5,4571.4,4.3722986]
[1759743199892,0.00241715,4571.5,4571.4,4.3722986]
[1759743200979,0.33651715,4571.5,4571.4,4.3722986]
[1759743201887,1.27659715,4571.5,4571.4,3.7498086]
[1759743202083,1.27427,4570.5,4570.4,3.2078]
[1759743202288,0.7525,4569.9,4569.8,3.9539]
[1759743202589,0.9715,4569.9,4569.8,3.9539]
[1759743203091,0.9715,4569.9,4569.8,3.95596078]
[1759743204887,0.9715,4569.9,4569.8,3.62316078]
[1759743205189,0.9715,4569.9,4568.8,0.219]
[1759743205190,0.98433,4569.8,4569.3,3.2078]
[1759743205389,0.81219,4569.1,4569.0,0.2074]
[1759743205590,0.5219,4569.0,4568.8,3.2078]
[1759743205789,0.4184,4568.9,4568.8,3.2078]
[1759743205991,0.7525,4568.9,4568.8,3.2078]
[1759743206183,0.7525,4568.9,4568.8,3.20989374]
[1759743207486,0.7525,4568.9,4568.8,3.41729374]
[1759743208681,0.7525,4568.9,4568.8,3.20989374]
[1759743209392,0.7525,4568.9,4568.8,3.41729374]
[1759743210786,0.7594,4568.9,4568.8,3.95599374]
[1759743213087,0.9715,4568.9,4568.8,3.95599374]
[1759743213289,0.9715,4568.9,4568.8,3.62319374]
[1759743213887,0.9715,4568.9,4568.8,3.95599374]
[1759743214493,0.7594,4568.9,4568.8,3.95599374]
[1759743214793,0.4253,4568.9,4568.8,3.95599374]
[1759743214993,0.219,4568.9,4568.8,3.95599374]
[1759743215388,0.6567,4569.5,4569.4,0.4294]
[1759743215696,1.49805,4569.5,4569.4,0.7427]
[1759743216492,1.49805,4569.5,4569.4,0.4294]
[1759743216692,1.49805,4569.5,4569.4,0.2056]
[1759743217797,1.14568,4569.2,4569.1,0.5189]
[1759743218198,1.14568,4569.2,4569.1,0.7427]
[1759743221600,0.5286,4569.2,4569.1,0.7427]
[1759743221894,0.7476,4569.2,4569.1,0.7427]
[1759743223902,0.9709,4569.2,4569.1,0.7427]
[1759743226995,0.7476,4569.2,4569.1,0.7427]
[1759743229101,0.9709,4569.2,4569.1,0.7427]
[1759743229603,0.7519,4569.2,4569.1,0.7427]
[1759743229803,0.9709,4569.2,4569.1,0.7427]
[1759743230504,0.7519,4569.2,4569.1,0.7427]
[1759743230704,0.9709,4569.2,4569.1,0.7427]
[1759743231105,0.7519,4569.2,4569.1,0.7427]
[1759743231302,0.9709,4569.2,4569.1,0.7427]
[1759743234197,0.9709,4569.2,4569.1,0.4294]
[1759743235304,0.7519,4569.2,4569.1,0.4294]
[1759743235510,0.9709,4569.2,4569.1,0.4294]
[1759743235708,0.9709,4569.2,4569.1,0.7383]
[1759743237507,0.7519,4569.2,4569.1,0.7383]
[1759743237713,0.9709,4569.2,4569.1,0.7383]
[1759743238807,0.9709,4569.2,4569.1,0.4294]
[1759743239205,0.9709,4569.2,4569.1,0.7383]
[1759743240012,1.1418,4568.9,4568.8,0.21419374]
[1759743240210,1.3608,4568.9,4568.8,0.21419374]
[1759743240406,0.967,4568.9,4568.8,0.21419374]
[1759743240610,0.967,4568.9,4568.8,0.74559374]
[1759743241319,0.219,4568.9,4568.8,1.31600036]
[1759743241517,0.2037,4569.4,4569.3,1.13727]
[1759743241719,0.4227,4569.4,4569.3,4.34507]
[1759743241919,1.14175,4569.6,4569.5,0.7435]
[1759743242107,1.36075,4569.6,4569.5,0.7435]
[1759743243714,2.54204653,4569.6,4569.5,0.7435]
[1759743244115,2.14829653,4569.6,4569.5,0.7435]
[1759743245316,1.92929653,4569.6,4569.5,0.7435]
[1759743245615,2.14829653,4569.6,4569.5,0.8747]
[1759743245816,1.92929653,4569.6,4569.5,0.8747]
[1759743246716,2.14829653,4569.6,4569.5,0.8747]
[1759743246915,1.92929653,4569.6,4569.5,0.8747]
[1759743247121,1.92929653,4569.6,4569.5,0.7435]
[1759743247420,2.14829653,4569.6,4569.5,0.7435]
[1759743248316,2.14829653,4569.6,4569.5,0.8747]
[1759743248522,1.92929653,4569.6,4569.5,0.8747]
[1759743248820,2.14829653,4569.6,4569.5,0.8747]
[1759743249021,0.967,4569.6,4569.5,0.8747]
[1759743249616,0.748,4569.6,4569.5,0.8747]
[1759743249815,0.967,4569.6,4569.5,0.8747]
[1759743250017,0.748,4569.6,4569.5,0.8747]
[1759743250217,0.967,4569.6,4569.5,0.8747]
[1759743250814,1.18129653,4569.8,4569.6,0.39374]
[1759743251019,1.18129653,4570.1,4570.0,0.95951]
[1759743251217,0.5298,4570.2,4570.1,3.9513]
[1759743251422,0.7488,4570.2,4570.1,3.9513]
[1759743252924,0.5298,4570.2,4570.1,3.9513]
[1759743253224,0.7488,4570.2,4570.1,3.9513]
[1759743253413,0.5298,4570.5,4570.4,0.60578]
[1759743253619,0.7488,4570.5,4570.4,1.13718]
[1759743253923,0.5298,4570.5,4570.4,1.13718]
[1759743254224,0.967,4570.5,4570.4,0.7435]
[1759743256823,0.4219,4570.2,4569.7,0.3089]
[1759743257020,0.748,4569.7,4569.6,4.12254]
[1759743257222,0.967,4569.7,4569.6,4.12254]
[1759743257526,0.967,4569.7,4569.6,3.7288]
[1759743260025,0.967,4569.7,4569.6,3.2078]
[1759743260221,1.36074,4569.7,4569.6,3.2078]
[1759743262233,0.967,4569.7,4569.6,3.2078]
[1759743262528,0.748,4569.7,4569.6,3.9634]
[1759743262727,0.3099,4570.5,4570.0,0.4445]
[1759743262933,0.7409,4570.5,4570.4,0.7556]
[1759743263133,0.4294,4570.5,4570.4,3.9634]
[1759743263530,0.88315072,4570.5,4570.4,3.9634]
[1759743264032,0.66415072,4570.5,4570.4,3.9634]
[1759743264333,0.67275072,4570.5,4570.4,3.9634]
[1759743264729,1.19305072,4570.5,4570.4,3.9634]
[1759743264928,1.58672072,4570.5,4570.4,3.9634]
[1759743265733,1.19305072,4570.5,4570.4,4.35708]
[1759743266137,1.19305072,4570.5,4570.4,3.9634]
[1759743267237,1.41365072,4570.5,4570.4,3.9634]
[1759743267642,1.54495072,4570.5,4570.4,3.9634]
[1759743268036,1.54495072,4570.5,4570.4,3.6453]
[1759743268236,0.7409,4570.2,4570.1,0.5328]
[1759743268432,1.58834072,4570.2,4570.1,0.5328]
[1759743271037,1.19465072,4570.2,4570.1,0.7556]
[1759743273137,0.67275072,4570.2,4570.1,0.7556]
[1759743274935,0.45375072,4570.2,4570.1,0.7556]
[1759743275343,0.67275072,4570.2,4570.1,0.7556]
[1759743276932,0.88115072,4570.2,4570.1,0.7556]
[1759743277233,1.19825072,4570.2,4570.1,0.7556]
[1759743277539,1.40755072,4570.2,4570.1,0.7556]
[1759743277736,0.88115072,4570.2,4570.1,0.7556]
[1759743279634,0.88115072,4570.2,4570.1,3.9634]
[1759743279830,0.45375072,4570.2,4570.1,3.9634]
[1759743280036,0.67275072,4570.2,4570.1,3.9634]
[1759743281439,0.88115072,4570.2,4570.1,3.9634]
[1759743281633,1.18855072,4570.2,4570.1,3.9634]
[1759743281833,1.40755072,4570.2,4570.1,3.9634]
[1759743288843,0.67275072,4570.2,4570.1,3.9634]
[1759743289343,0.88615072,4570.2,4570.1,3.9634]
[1759743289542,0.88615072,4570.2,4570.1,4.3571]
[1759743289842,0.67275072,4570.2,4570.1,4.3571]
[1759743291240,0.88615072,4570.2,4570.1,4.3571]
[1759743291944,0.67275072,4570.2,4570.1,4.3571]
[1759743293146,0.88615072,4570.2,4570.1,4.3571]
[1759743296743,0.21900072,4570.2,4570.1,4.3571]
[1759743297547,7.2e-07,4570.2,4570.1,4.3571]
[1759743297848,7.2e-07,4570.2,4570.1,4.039]
[1759743298951,0.21340072,4570.2,4570.1,4.039]
[1759743299245,0.7089,4570.1,4570.0,3.2078]
[1759743299447,1.1411,4570.1,4570.0,3.2078]
[1759743304049,0.7474,4570.1,4570.0,3.762]
[1759743304349,0.2134,4570.1,4570.0,4.1114]
[1759743304548,0.92228,4570.4,4570.3,0.7784]
[1759743304749,1.14128,4570.4,4570.3,0.7784]
[1759743305846,1.36008,4570.4,4570.3,0.7784]
[1759743306549,0.9664,4570.4,4570.3,0.7784]
[1759743306955,0.7474,4570.4,4570.3,0.7784]
[1759743307155,0.4324,4570.4,4570.3,0.7784]
[1759743307857,0.2134,4570.4,4570.3,0.7784]
[1759743308055,0.92227,4570.6,4570.5,0.5714]
[1759743308257,1.14127,4570.6,4570.5,0.9036]
[1759743308556,3.92056356,4570.6,4570.5,0.9036]
[1759743308744,3.76032841,4570.6,4570.5,0.9036]
[1759743308946,0.45243485,4570.6,4570.5,0.9036]
[1759743309153,0.67143485,4570.6,4570.5,0.9036]
[1759743309551,1.20003485,4570.6,4570.5,0.9036]
[1759743309857,0.98103485,4570.6,4570.5,0.9036]
[1759743310055,1.20003485,4570.6,4570.5,0.9036]
[1759743310358,0.98103485,4570.6,4570.5,0.9036]
[1759743310558,1.20003485,4570.6,4570.5,0.9036]
[1759743310858,0.45243485,4570.6,4570.5,0.9036]
[1759743311056,0.45243485,4570.6,4570.5,4.1114]
[1759743311257,0.00241715,4571.5,4571.3,0.8398]
[1759743311461,0.00241715,4571.5,4571.4,0.7784]
[1759743316357,7.15e-06,4571.5,4571.4,0.7784]
[1759743316561,7.15e-06,4571.5,4571.4,5.7784]
[1759743319463,7.15e-06,4571.5,4571.4,7.51861533]
[1759743320153,7.15e-06,4571.5,4571.4,7.73761533]
[1759743320761,0.219,4572.2,4572.1,1.15843]
[1759743321062,0.219,4572.2,4572.1,4.36623]
[1759743321862,0.22156243,4572.2,4572.1,4.36812177]
[1759743334061,1.36768243,4572.2,4572.1,3.20969177]
[1759743334266,1.36768243,4572.2,4572.1,3.74829177]
[1759743334968,0.97416243,4572.2,4572.1,3.97389177]
[1759743337768,0.00256243,4572.2,4572.1,3.97389177]
[1759743340576,0.00256243,4572.2,4572.1,0.76609177]
[1759743340778,0.00256243,4572.2,4572.1,3.97389177]
[1759743343177,0.20886243,4572.2,4572.1,3.97389177]
[1759743343375,0.54056243,4572.2,4572.1,3.97389177]
[1759743345679,0.76456243,4572.2,4572.1,3.97389177]
[1759743347788,0.4162,4571.6,4571.5,0.78034933]
[1759743348082,0.7542,4571.5,4571.4,0.5584]
[1759743348979,0.7542,4571.5,4571.4,0.77545444]
[1759743352775,0.8885,4571.5,4571.4,0.56035444]
[1759743354788,0.8885,4571.5,4571.4,0.00195444]
[1759743356189,0.80987,4570.5,4570.4,0.4391]
[1759743356378,1.36687,4570.5,4570.4,0.7735]
[1759743356579,0.9732,4570.5,4570.4,0.7735]
[1759743357277,0.9732,4570.5,4570.4,0.77557811]
[1759743359081,0.219,4570.5,4570.4,0.77557811]
[1759743360182,3.2078,4571.3,4570.5,0.1231]
[1759743360480,0.338,4571.8,4571.5,0.8966]
[1759743360682,0.219,4571.7,4571.6,0.7735]
[1759743361096,0.9732,4571.7,4571.6,0.7735]
[1759743361290,0.7542,4571.7,4571.6,0.7735]
[1759743361490,0.9732,4571.7,4571.6,0.5584]
[1759743361681,1.14779,4571.4,4570.8,3.2078]
[1759743361881,0.7542,4571.2,4571.1,0.95201]
[1759743362081,0.9732,4571.2,4571.1,1.16711]
[1759743363781,0.9732,4571.2,4571.1,0.7735]
[1759743365885,0.39363,4570.9,4570.8,0.5584]
[1759743366084,1.14783,4570.9,4570.8,0.5584]
[1759743367080,1.14787,4570.6,4570.5,0.5584]
[1759743367286,1.36687,4570.6,4570.5,0.5584]
[1759743367882,0.9732,4570.6,4570.5,0.5584]
[1759743368079,0.9732,4570.6,4570.5,0.224]
[1759743368789,0.9732,4570.6,4570.5,0.5584]
[1759743370586,0.9732,4570.6,4570.5,0.7735]
[1759743373479,0.9732,4570.6,4570.5,0.8966]
[1759743374592,0.9732,4570.6,4570.5,0.7735]
[1759743375185,0.7542,4570.6,4570.5,0.7735]
[1759743375388,0.9732,4570.6,4570.5,0.8966]
[1759743376592,0.9732,4570.6,4570.5,0.7735]
[1759743376986,0.9732,4570.6,4570.5,0.5584]
[1759743378191,0.9732,4570.6,4570.5,0.7735]
[1759743378696,0.3369,4570.9,4570.8,0.39364]
[1759743378887,1.15732,4571.1,4571.0,0.5257]
[1759743379090,1.37632,4571.1,4571.0,0.7292]
[1759743379389,4.19759073,4571.1,4571.0,0.7292]
[1759743380292,4.19759073,4571.1,4571.0,0.5257]
[1759743380687,3.97859073,4571.1,4571.0,0.5257]
[1759743380886,3.97859073,4571.1,4571.0,0.7292]
[1759743380887,0.7637,4571.1,4571.0,0.7292]
[1759743381087,0.9827,4571.1,4571.0,0.8622]
[1759743381294,0.6458,4571.1,4571.0,0.8622]
[1759743381488,3.2078,4571.4,4571.3,0.2187]
[1759743381794,3.9865,4571.4,4571.3,1.1228]
[1759743382391,3.2078,4571.4,4571.3,1.1228]
[1759743382692,0.5597,4571.9,4571.8,0.7292]
[1759743382892,0.7787,4571.9,4571.8,0.7292]
[1759743383093,0.9827,4571.9,4571.8,0.7292]
[1759743383286,0.9827,4571.9,4571.8,41.5292]
[1759743383494,0.9827,4571.9,4571.8,41.0187]
[1759743383892,4.1905,4571.9,4571.8,0.2187]
[1759743384087,0.7637,4571.6,4571.5,0.5257]
[1759743384596,0.7637,4571.6,4571.5,41.5292]
[1759743384895,0.7637,4571.6,4571.5,41.0187]
[1759743385196,0.7637,4571.6,4571.5,0.5257]
[1759743385589,0.7637,4571.6,4571.5,0.7292]
[1759743387594,0.7637,4571.6,4571.5,0.8622]
[1759743387797,0.95326,4571.8,4571.7,0.7292]
[1759743387997,1.37626,4571.8,4571.7,0.7292]
[1759743388699,1.15726,4571.8,4571.7,0.7292]
[1759743388890,1.37626,4571.8,4571.7,0.7292]
[1759743389399,1.15726,4571.8,4571.7,0.7292]
[1759743389600,1.37626,4571.8,4571.7,0.7292]
[1759743391998,0.7637,4571.8,4571.7,1.12276]
[1759743392192,0.9827,4571.8,4571.7,0.7292]
[1759743392497,0.7637,4571.3,4571.2,41.92281]
[1759743392697,0.9827,4571.3,4571.2,41.92281]
[1759743392902,1.3763,4571.3,4571.2,41.0187]
[1759743393089,0.2228,4570.6,4570.5,0.5552]
[1759743393295,0.9827,4570.6,4570.5,0.7292]
[1759743393496,0.9827,4570.6,4570.5,41.5292]
[1759743395200,0.9827,4570.6,4570.5,41.6549]
[1759743396998,0.4418,4570.6,4570.5,41.6549]
[1759743397393,0.219,4570.6,4570.5,41.6549]
[1759743397799,0.5323,4570.6,4570.5,41.6549]
[1759743399698,0.9717,4570.6,4570.5,0.2187]
[1759743399896,0.9717,4570.6,4570.5,0.5403]
[1759743402010,0.83997,4570.5,4570.4,41.12367811]
[1759743402906,0.70697,4570.5,4570.4,41.12367811]
[1759743403110,1.14637,4570.5,4570.4,0.75407811]
[1759743405708,0.7527,4570.5,4570.4,0.75407811]
[1759743409207,0.5315,4570.5,4570.4,0.75407811]
[1759743409411,0.2182,4570.5,4570.4,0.75407811]
[1759743411408,0.5255,4570.5,4570.4,0.75407811]
[1759743412005,0.7482,4570.5,4570.4,0.75407811]
[1759743414216,0.8791,4570.5,4570.4,0.00207811]
[1759743415114,0.8791,4570.5,4570.4,0.55447811]
[1759743416720,0.8791,4570.5,4570.4,0.22437811]
[1759743418219,0.8791,4570.5,4570.4,0.55447811]
[1759743420325,0.9672,4570.5,4570.4,0.75897811]
[1759743421226,3.2078,4570.8,4570.4,0.75897811]
[1759743421425,3.2078,4570.8,4570.7,1.15055]
[1759743421722,3.6501,4570.8,4570.7,1.15055]
[1759743421924,3.9574,4570.8,4570.7,1.15055]
[1759743422113,3.7384,4570.8,4570.7,1.15055]
[1759743422316,3.2078,4570.8,4570.7,1.15055]
[1759743422516,3.2078,4571.3,4571.2,1.15051]
[1759743422716,3.4268,4571.3,4571.2,1.15051]
[1759743422919,3.4268,4571.3,4571.2,41.95051]
[1759743423318,3.2078,4571.3,4571.2,41.95051]
[1759743423713,1.40395977,4571.6,4571.5,0.5619]
[1759743423914,1.62295977,4571.6,4571.5,0.892]
[1759743424320,1.93025977,4571.6,4571.5,0.892]
[1759743424625,4.38845977,4571.8,4571.6,0.72367]
[1759743424822,1.18065977,4571.9,4571.8,0.39355]
[1759743425119,0.00256243,4572.2,4572.1,0.7569]
[1759743425918,0.00256243,4572.2,4572.1,41.5569]
[1759743426925,0.22156243,4572.2,4572.1,41.5569]
[1759743438330,2.43e-06,4572.2,4572.1,41.5569]
[1759743438630,2.43e-06,4572.2,4572.1,46.5569]
[1759743441629,0.191,4572.9,4572.8,1.16547]
[1759743441835,0.022,4572.9,4572.8,1.16547]
[1759743442035,0.241,4572.9,4572.8,1.16547]
[1759743442435,0.241,4572.9,4572.8,41.96547]
[1759743442636,0.24309389,4572.9,4572.8,41.96547]
[1759743443032,0.02409389,4572.9,4572.8,41.96547]
[1759743443231,0.24309389,4572.9,4572.8,41.96547]
[1759743443436,0.02409389,4572.9,4572.8,41.96547]
[1759743443638,0.24309389,4572.9,4572.8,41.96547]
[1759743444031,0.02409389,4572.9,4572.8,41.96547]
[1759743444432,0.24309389,4572.9,4572.8,41.96547]
[1759743445542,0.56009389,4572.9,4572.8,41.96547]
[1759743445936,0.24309389,4572.9,4572.8,41.96547]
[1759743448534,0.02409389,4572.9,4572.8,41.96547]
[1759743449748,0.34109389,4572.9,4572.8,41.96547]
[1759743450437,0.02409389,4572.9,4572.8,41.96547]
[1759743451640,0.78926046,4572.9,4572.8,41.572]
[1759743452137,0.47226046,4572.9,4572.8,41.572]
[1759743452743,0.78926046,4572.9,4572.8,41.572]
[1759743453145,0.47226046,4572.9,4572.8,41.572]
[1759743455341,1.18065977,4573.8,4572.8,46.2382]
[1759743455540,1.18065977,4574.4,4574.3,1.06984]
[1759743455747,1.18065977,4574.4,4574.3,0.4274]
[1759743455748,0.9729,4574.4,4574.3,0.4274]
[1759743456046,1.36623,4574.4,4574.3,41.2274]
[1759743456235,0.9729,4574.4,4574.3,41.2274]
[1759743456441,0.97558932,4574.4,4574.3,41.23011381]
[1759743456741,0.97558932,4574.4,4574.3,41.47921381]
[1759743457447,0.75658932,4574.4,4574.3,41.47921381]
[1759743457648,0.54218932,4574.4,4574.3,41.47921381]
[1759743457849,0.76118932,4574.4,4574.3,41.47921381]
[1759743458046,0.54218932,4574.4,4574.3,41.47921381]
[1759743458248,0.76118932,4574.4,4574.3,41.47921381]
[1759743458442,0.54218932,4574.4,4574.3,41.47921381]
[1759743458647,0.76118932,4574.4,4574.3,41.47921381]
[1759743458847,0.53728932,4574.4,4574.3,41.47921381]
[1759743459950,0.00268932,4574.4,4574.3,41.47921381]
[1759743460244,0.3156,4575.4,4575.3,0.39325]
[1759743460449,0.5346,4575.4,4575.3,0.6765]
[1759743460747,0.9729,4575.4,4575.3,0.2155]
[1759743460944,1.36615,4575.4,4575.3,40.8]
[1759743461252,1.36853226,4575.4,4575.3,40.8]
[1759743461643,0.3933,4574.8,4574.7,0.4646]
[1759743461847,1.3662,4574.8,4574.7,0.4274]
[1759743462047,0.9729,4574.8,4574.7,0.4274]
[1759743462245,0.9729,4574.8,4574.7,41.4765]
[1759743463947,0.9729,4574.8,4574.7,41.2274]
[1759743464146,0.9729,4574.8,4574.7,41.4765]
[1759743467156,0.9729,4574.8,4574.7,41.0155]
[1759743468058,0.9729,4574.8,4574.7,0.6765]
[1759743468356,0.5346,4574.8,4574.7,0.6765]
[1759743468655,0.7405,4574.8,4574.7,0.6765]
[1759743468855,0.5215,4574.8,4574.7,0.6765]
[1759743469055,0.7405,4574.8,4574.7,0.6765]
[1759743469744,0.9646,4574.8,4574.7,0.4274]
[1759743470348,0.71781,4574.7,4574.6,40.8]
[1759743472055,0.3245,4574.7,4574.6,41.0491]
[1759743472360,0.5435,4574.7,4574.6,41.0491]
[1759743473052,0.3245,4574.7,4574.6,41.0491]
[1759743473261,0.3245,4574.9,4574.8,0.8278]
[1759743473457,0.5435,4574.9,4574.8,1.0769]
[1759743473659,0.5435,4574.9,4574.8,0.6836]
[1759743475657,0.7494,4574.9,4574.8,0.6836]
[1759743477362,0.9735,4574.9,4574.8,0.4345]
[1759743479462,0.9735,4574.9,4574.8,0.2244]
[1759743481554,0.3933,4574.8,4574.6,40.8]
[1759743481864,0.3933,4574.8,4574.3,3.21051381]
[1759743481865,0.7545,4574.4,4574.3,0.00271381]
[1759743482062,0.39342,4573.4,4573.2,3.2078]
[1759743482360,0.3245,4573.3,4573.2,3.8914]
[1759743482557,0.3245,4573.5,4573.4,0.6836]
[1759743482758,0.5435,4573.5,4573.4,0.6836]
[1759743482959,0.5435,4573.5,4573.4,41.48526089]
[1759743483158,1.31085532,4574.0,4573.9,0.60347]
[1759743483468,0.219,4574.0,4573.9,1.07697]
[1759743483959,0.5435,4574.0,4573.9,1.07697]
[1759743484557,0.5435,4574.0,4573.9,41.87697]
[1759743485263,0.3245,4574.0,4573.9,41.87697]
[1759743485463,3.2078,4574.5,4574.4,1.07693]
[1759743485664,3.4268,4574.5,4574.4,1.07693]
[1759743485865,3.7513,4574.5,4574.4,1.07693]
[1759743488567,3.9572,4574.5,4574.4,1.07693]
[1759743488969,3.5323,4574.5,4574.4,1.07693]
[1759743489270,3.7513,4574.5,4574.4,1.07693]
[1759743489470,3.5323,4574.5,4574.4,1.07693]
[1759743489664,3.7513,4574.5,4574.4,1.07693]
[1759743489867,3.5323,4574.5,4574.4,1.07693]
[1759743490064,4.0921,4574.5,4574.4,1.07693]
[1759743490264,4.0921,4574.5,4574.4,0.82783]
[1759743490771,4.3162,4574.5,4574.4,0.82783]
[1759743491673,0.85277,4574.0,4573.9,40.8]
[1759743491873,0.85277,4574.0,4573.5,0.2491]
[1759743491874,0.95831,4573.5,4573.4,0.22606089]
[1759743492169,1.1084,4573.5,4573.4,0.22606089]
[1759743492465,1.1084,4573.5,4573.4,41.02606089]
[1759743492671,1.1084,4573.5,4573.4,41.41948089]
[1759743493061,0.3408,4574.0,4573.9,1.07697]
[1759743493267,0.5598,4574.0,4573.9,1.07697]
[1759743493664,0.8843,4574.0,4573.9,1.07697]
[1759743493869,0.7494,4574.0,4573.9,1.07697]
[1759743495671,0.8843,4574.0,4573.9,1.07697]
[1759743495863,0.8843,4574.0,4573.9,0.82787]
[1759743496063,1.1084,4574.0,4573.9,0.82787]
[1759743496260,1.1084,4574.0,4573.9,41.62787]
[1759743497262,1.1084,4574.0,4573.9,41.87697]
[1759743498273,1.1084,4574.0,4573.9,41.62787]
[1759743499467,0.5711,4573.5,4573.4,0.00166089]
[1759743499677,1.1158,4573.5,4573.4,0.00166089]
[1759743499862,1.1158,4573.5,4573.4,0.60038089]
[1759743500068,1.1158,4573.5,4573.4,41.40038089]
[1759743500469,1.1158,4573.5,4573.4,41.64968089]
[1759743500674,0.8976,4573.5,4573.4,41.64968089]
[1759743502274,0.8976,4573.5,4573.4,41.00696089]
[1759743502573,1.1158,4573.5,4573.4,0.00166089]
[1759743504377,1.1158,4573.5,4573.4,0.20696089]
[1759743504772,0.8968,4573.5,4573.4,0.20696089]
[1759743504971,0.8968,4573.5,4573.4,0.42126089]
[1759743505272,1.1158,4573.5,4573.4,0.67056089]